[Event "*** Titled Tuesday Blitz"]
[Site "Chess.com"]
[Date "2018.06.05"]
[Round "3"]
[White "nOcHeaTiNgKiD"]
[Black "Quiet_Desperation"]
[Result "1-0"]
[WhiteElo "2348"]
[BlackElo "2373"]
[TimeControl "180+2"]
[EndTime "13:39:30 PDT"]
[Termination "nOcHeaTiNgKiD won by resignation"]

1. Nf3 {[%clk 0:03:00.9]} 1... Nf6 {[%clk 0:03:00.7]} 2. d4 {[%clk 0:03:00.4]}
2... e6 {[%clk 0:03:01.9]} 3. c4 {[%clk 0:03:00]} 3... Bb4+ {[%clk 0:03:02.5]}
4. Nbd2 {[%clk 0:03:00.6]} 4... b6 {[%clk 0:03:03.4]} 5. a3 {[%clk 0:03:01.5]}
5... Bxd2+ {[%clk 0:03:03.2]} 6. Qxd2 {[%clk 0:03:02.3]} 6... Bb7 {[%clk
0:03:04.2]} 7. e3 {[%clk 0:03:01.9]} 7... O-O {[%clk 0:03:04.9]} 8. Be2 {[%clk
0:03:02.4]} 8... Ne4 {[%clk 0:03:05.8]} 9. Qc2 {[%clk 0:03:03.4]} 9... f5 {[%clk
0:03:07]} 10. O-O {[%clk 0:03:04.3]} 10... d6 {[%clk 0:03:02.5]} 11. Nd2 {[%clk
0:03:04.9]} 11... Ng5 {[%clk 0:03:01.3]} 12. b4 {[%clk 0:02:45]} 12... Nd7
{[%clk 0:03:01.3]} 13. c5 {[%clk 0:02:42.7]} 13... dxc5 {[%clk 0:02:53.2]} 14.
bxc5 {[%clk 0:02:40.7]} 14... bxc5 {[%clk 0:02:46.6]} 15. dxc5 {[%clk
0:02:41.1]} 15... Bc6 {[%clk 0:02:47.6]} 16. Bb2 {[%clk 0:02:36.9]} 16... Ne4
{[%clk 0:02:39.7]} 17. Nxe4 {[%clk 0:02:12.8]} 17... Bxe4 {[%clk 0:02:38.6]} 18.
Qc3 {[%clk 0:02:10.5]} 18... Qg5 {[%clk 0:02:26]} 19. f3 {[%clk 0:02:08.8]}
19... Bc6 {[%clk 0:02:23.7]} 20. Rad1 {[%clk 0:01:58]} 20... Nf6 {[%clk
0:02:10.1]} 21. Qe5 {[%clk 0:01:49.7]} 21... Rae8 {[%clk 0:02:01.5]} 22. Rde1
{[%clk 0:01:17.4]} 22... Nd5 {[%clk 0:01:39.1]} 23. Bc4 {[%clk 0:01:16.3]} 23...
Rf6 {[%clk 0:01:19]} 24. Qg3 {[%clk 0:00:56.6]} 24... Qxg3 {[%clk 0:01:16.4]}
25. hxg3 {[%clk 0:00:58.4]} 25... Rg6 {[%clk 0:01:17.5]} 26. Kf2 {[%clk
0:00:59.2]} 26... Rb8 {[%clk 0:01:10.6]} 27. Be5 {[%clk 0:00:58.8]} 27... Bb5
{[%clk 0:00:46.8]} 28. Rb1 {[%clk 0:00:51.3]} 28... c6 {[%clk 0:00:38.4]} 1-0

[Event "*** Titled Tuesday Blitz"]
[Site "Chess.com"]
[Date "2018.06.05"]
[Round "3"]
[White "djamir"]
[Black "gmjlh"]
[Result "0-1"]
[WhiteElo "2586"]
[BlackElo "2624"]
[TimeControl "180+2"]
[EndTime "13:39:32 PDT"]
[Termination "gmjlh won by resignation"]

1. d4 {[%clk 0:03:01.9]} 1... d5 {[%clk 0:03:00.6]} 2. Bf4 {[%clk 0:03:02.3]}
2... e6 {[%clk 0:03:01]} 3. e3 {[%clk 0:03:03.6]} 3... Nf6 {[%clk 0:03:02.1]} 4.
Bd3 {[%clk 0:03:03.9]} 4... Bd6 {[%clk 0:03:03.4]} 5. Bg3 {[%clk 0:03:05.1]}
5... O-O {[%clk 0:03:04.5]} 6. Nf3 {[%clk 0:03:06.2]} 6... c5 {[%clk 0:03:05.6]}
7. c3 {[%clk 0:03:07.1]} 7... Qc7 {[%clk 0:03:06.6]} 8. Nbd2 {[%clk 0:02:52]}
8... Nbd7 {[%clk 0:03:07]} 9. Qe2 {[%clk 0:02:45.3]} 9... e5 {[%clk 0:03:07.2]}
10. dxe5 {[%clk 0:02:46.5]} 10... Nxe5 {[%clk 0:03:08.2]} 11. Nxe5 {[%clk
0:02:47.8]} 11... Bxe5 {[%clk 0:03:10.1]} 12. Nf3 {[%clk 0:02:48.7]} 12... Bxg3
{[%clk 0:03:11.1]} 13. hxg3 {[%clk 0:02:50.6]} 13... h6 {[%clk 0:03:12.6]} 14.
O-O-O {[%clk 0:02:49.9]} 14... b5 {[%clk 0:03:00.2]} 15. Bxb5 {[%clk 0:02:45.1]}
15... Rb8 {[%clk 0:02:59.8]} 16. Bd3 {[%clk 0:02:38.8]} 16... Qa5 {[%clk
0:02:46.9]} 17. Bb1 {[%clk 0:02:35.1]} 17... Be6 {[%clk 0:02:32.2]} 18. Rh4
{[%clk 0:02:20.9]} 18... Rb6 {[%clk 0:02:31.5]} 19. Ne5 {[%clk 0:01:38.3]} 19...
Rfb8 {[%clk 0:02:29.5]} 20. Rd2 {[%clk 0:01:39.3]} 20... Qxc3+ {[%clk
0:01:39.3]} 21. bxc3 {[%clk 0:01:08.5]} 21... Rxb1+ {[%clk 0:01:41.2]} 22. Kc2
{[%clk 0:01:09.2]} 22... Bf5+ {[%clk 0:01:20.9]} 23. e4 {[%clk 0:01:01.5]} 23...
Nxe4 {[%clk 0:01:21.7]} 24. Rf4 {[%clk 0:00:24.9]} 24... Nxf2+ {[%clk 0:01:14]}
0-1

[Event "*** Titled Tuesday Blitz"]
[Site "Chess.com"]
[Date "2018.06.05"]
[Round "3"]
[White "tigra"]
[Black "Ali_rastbod"]
[Result "1-0"]
[WhiteElo "2721"]
[BlackElo "2520"]
[TimeControl "180+2"]
[EndTime "13:39:36 PDT"]
[Termination "tigra won by resignation"]

1. e4 {[%clk 0:03:01.9]} 1... e6 {[%clk 0:03:00.1]} 2. d3 {[%clk 0:03:03.1]}
2... d5 {[%clk 0:03:00.4]} 3. Nd2 {[%clk 0:03:04.8]} 3... Nf6 {[%clk 0:03:01.9]}
4. Ngf3 {[%clk 0:03:05.3]} 4... Nc6 {[%clk 0:03:03.3]} 5. c3 {[%clk 0:03:04.9]}
5... a5 {[%clk 0:02:58.8]} 6. e5 {[%clk 0:03:04]} 6... Nd7 {[%clk 0:02:59.7]} 7.
d4 {[%clk 0:03:05]} 7... f6 {[%clk 0:03:00.7]} 8. Bb5 {[%clk 0:03:03.8]} 8...
Na7 {[%clk 0:02:44.2]} 9. Bd3 {[%clk 0:03:03.4]} 9... fxe5 {[%clk 0:02:39.7]}
10. dxe5 {[%clk 0:03:01.1]} 10... Be7 {[%clk 0:02:33.6]} 11. h4 {[%clk
0:02:58.8]} 11... Nc6 {[%clk 0:02:02.8]} 12. Qe2 {[%clk 0:02:54.6]} 12... Nc5
{[%clk 0:02:02.6]} 13. Bc2 {[%clk 0:02:50.7]} 13... d4 {[%clk 0:02:03.3]} 14.
cxd4 {[%clk 0:02:50.1]} 14... Nxd4 {[%clk 0:02:05.2]} 15. Nxd4 {[%clk
0:02:49.7]} 15... Qxd4 {[%clk 0:02:07.1]} 16. Qh5+ {[%clk 0:02:45]} 16... Kf8
{[%clk 0:01:57.4]} 17. O-O {[%clk 0:02:35.8]} 17... Qxh4 {[%clk 0:01:58]} 18.
Qf3+ {[%clk 0:02:36]} 18... Kg8 {[%clk 0:01:58.9]} 19. Ne4 {[%clk 0:02:30.6]}
19... Bd7 {[%clk 0:01:38.1]} 20. Nxc5 {[%clk 0:01:54]} 20... Bxc5 {[%clk
0:01:40]} 21. Qxb7 {[%clk 0:01:54.7]} 21... Rf8 {[%clk 0:01:37.5]} 22. Be3
{[%clk 0:01:54.5]} 22... Be7 {[%clk 0:00:48.7]} 23. Qxc7 {[%clk 0:01:48.4]}
23... Bb5 {[%clk 0:00:43.8]} 24. Bb3 {[%clk 0:01:38.8]} 24... h6 {[%clk
0:00:34.4]} 25. g3 {[%clk 0:01:31.4]} 25... Qe4 {[%clk 0:00:24.7]} 26. Qxe7
{[%clk 0:01:20.3]} 26... Bc6 {[%clk 0:00:24.8]} 27. Qxe6+ {[%clk 0:01:21.2]}
27... Kh7 {[%clk 0:00:19.8]} 28. Bc2 {[%clk 0:01:17.2]} 28... Qxc2 {[%clk
0:00:19.6]} 29. Rac1 {[%clk 0:01:18]} 1-0

[Event "*** Titled Tuesday Blitz"]
[Site "Chess.com"]
[Date "2018.06.05"]
[Round "3"]
[White "Vusatiuk_Vladimir"]
[Black "11kevin"]
[Result "0-1"]
[WhiteElo "2181"]
[BlackElo "2241"]
[TimeControl "180+2"]
[EndTime "13:39:40 PDT"]
[Termination "11kevin won by resignation"]

1. e4 {[%clk 0:02:57.9]} 1... c6 {[%clk 0:02:59.2]} 2. d4 {[%clk 0:02:58.7]}
2... d5 {[%clk 0:03:00]} 3. e5 {[%clk 0:03:00.3]} 3... Bf5 {[%clk 0:03:00]} 4.
Nf3 {[%clk 0:03:00.8]} 4... e6 {[%clk 0:03:00.4]} 5. Be2 {[%clk 0:03:02.4]} 5...
c5 {[%clk 0:03:01.4]} 6. Be3 {[%clk 0:03:02]} 6... cxd4 {[%clk 0:03:02.5]} 7.
Nxd4 {[%clk 0:03:03.9]} 7... Ne7 {[%clk 0:03:03.5]} 8. O-O {[%clk 0:03:04.8]}
8... Nbc6 {[%clk 0:03:04.3]} 9. f4 {[%clk 0:03:02.1]} 9... Nxd4 {[%clk
0:03:03.9]} 10. Bxd4 {[%clk 0:03:03]} 10... Nc6 {[%clk 0:03:05.5]} 11. c3 {[%clk
0:03:04.1]} 11... Nxd4 {[%clk 0:03:05.6]} 12. cxd4 {[%clk 0:03:04.2]} 12... Qb6
{[%clk 0:03:04.7]} 13. Nc3 {[%clk 0:02:57]} 13... Be7 {[%clk 0:03:01.6]} 14.
Qa4+ {[%clk 0:02:56.6]} 14... Kf8 {[%clk 0:03:02.2]} 15. b3 {[%clk 0:01:56.9]}
15... a6 {[%clk 0:03:02]} 16. Rac1 {[%clk 0:01:52.4]} 16... Bb4 {[%clk
0:03:01.3]} 17. Nb5 {[%clk 0:01:41.3]} 17... Be7 {[%clk 0:02:37.5]} 18. Rfd1
{[%clk 0:01:01.6]} 18... g6 {[%clk 0:02:37.6]} 19. Nc7 {[%clk 0:00:57.7]} 19...
Rc8 {[%clk 0:02:37.2]} 20. Qd7 {[%clk 0:00:49.3]} 20... Rd8 {[%clk 0:02:32.6]}
21. Qa4 {[%clk 0:00:39.6]} 21... Qb4 {[%clk 0:02:31.7]} 22. Qxb4 {[%clk
0:00:15.7]} 22... Bxb4 {[%clk 0:02:26.6]} 23. Kf2 {[%clk 0:00:17.2]} 23... h5
{[%clk 0:02:23.9]} 24. h3 {[%clk 0:00:17.5]} 24... h4 {[%clk 0:02:24.9]} 25. Ke3
{[%clk 0:00:18.9]} 25... Ke7 {[%clk 0:02:25.2]} 26. a4 {[%clk 0:00:16.8]} 26...
Rc8 {[%clk 0:02:25]} 27. Bxa6 {[%clk 0:00:14.8]} 27... Ba3 {[%clk 0:02:18.3]}
28. Bxb7 {[%clk 0:00:14.2]} 28... Bxc1+ {[%clk 0:02:16.1]} 29. Rxc1 {[%clk
0:00:15.6]} 29... Kd7 {[%clk 0:02:16]} 30. Bxc8+ {[%clk 0:00:16.1]} 30... Rxc8
{[%clk 0:02:15.7]} 31. Rc5 {[%clk 0:00:13.7]} 31... Rxc7 {[%clk 0:02:16.4]} 32.
Rb5 {[%clk 0:00:15]} 32... Rc3+ {[%clk 0:02:14.6]} 33. Kd2 {[%clk 0:00:15.3]}
33... Rc2+ {[%clk 0:02:15.5]} 34. Kd1 {[%clk 0:00:16]} 34... Rxg2 {[%clk
0:02:16.3]} 35. a5 {[%clk 0:00:17.4]} 35... Ra2 {[%clk 0:02:09.4]} 36. b4 {[%clk
0:00:17]} 36... Bxh3 {[%clk 0:02:09.7]} 37. Rb7+ {[%clk 0:00:17.1]} 37... Kc6
{[%clk 0:02:08.7]} 38. Rb6+ {[%clk 0:00:18.4]} 38... Kc7 {[%clk 0:02:09.6]} 39.
Rd6 {[%clk 0:00:19.8]} 39... Bg4+ {[%clk 0:02:09.4]} 40. Kc1 {[%clk 0:00:19.9]}
40... h3 {[%clk 0:02:10.4]} 41. Kb1 {[%clk 0:00:21.2]} 41... Ra4 {[%clk
0:02:09.7]} 42. a6 {[%clk 0:00:22.2]} 0-1

[Event "*** Titled Tuesday Blitz"]
[Site "Chess.com"]
[Date "2018.06.05"]
[Round "3"]
[White "amiralfio"]
[Black "BlackBoarder"]
[Result "1-0"]
[WhiteElo "2276"]
[BlackElo "2266"]
[TimeControl "180+2"]
[EndTime "13:39:41 PDT"]
[Termination "amiralfio won by checkmate"]

1. d4 {[%clk 0:03:00.1]} 1... Nf6 {[%clk 0:02:59.8]} 2. Nf3 {[%clk 0:02:57.5]}
2... e6 {[%clk 0:03:00.4]} 3. c4 {[%clk 0:02:57.1]} 3... d5 {[%clk 0:03:01]} 4.
Nc3 {[%clk 0:02:56.3]} 4... Bb4 {[%clk 0:02:59.8]} 5. cxd5 {[%clk 0:02:55.5]}
5... exd5 {[%clk 0:02:57.4]} 6. Bg5 {[%clk 0:02:53.5]} 6... h6 {[%clk
0:02:49.3]} 7. Bh4 {[%clk 0:02:46.6]} 7... g5 {[%clk 0:02:32.3]} 8. Bg3 {[%clk
0:02:46.6]} 8... Ne4 {[%clk 0:02:33.6]} 9. Nd2 {[%clk 0:02:46.5]} 9... Nxc3
{[%clk 0:02:28.2]} 10. bxc3 {[%clk 0:02:43]} 10... Bxc3 {[%clk 0:02:28.2]} 11.
Rc1 {[%clk 0:02:38]} 11... Bxd2+ {[%clk 0:02:03.4]} 12. Qxd2 {[%clk 0:02:37.5]}
12... c6 {[%clk 0:01:59.8]} 13. h4 {[%clk 0:02:27.9]} 13... Rg8 {[%clk
0:01:38.2]} 14. hxg5 {[%clk 0:01:42.2]} 14... hxg5 {[%clk 0:01:38.7]} 15. e4
{[%clk 0:01:37.7]} 15... dxe4 {[%clk 0:01:32]} 16. Bc4 {[%clk 0:01:33.4]} 16...
Be6 {[%clk 0:00:40.7]} 17. Bxe6 {[%clk 0:01:31.7]} 17... fxe6 {[%clk 0:00:42]}
18. Rh7 {[%clk 0:01:33.3]} 18... Nd7 {[%clk 0:00:40.7]} 19. Qb4 {[%clk
0:01:27.3]} 19... Nb6 {[%clk 0:00:04.5]} 20. Bc7 {[%clk 0:01:00.3]} 20... Qd5
{[%clk 0:00:02.4]} 21. Qe7# {[%clk 0:00:45.9]} 1-0

[Event "*** Titled Tuesday Blitz"]
[Site "Chess.com"]
[Date "2018.06.05"]
[Round "3"]
[White "penguingm1"]
[Black "Jungle_Jaguar"]
[Result "1-0"]
[WhiteElo "2685"]
[BlackElo "2455"]
[TimeControl "180+2"]
[EndTime "13:39:54 PDT"]
[Termination "penguingm1 won by resignation"]

1. d4 {[%clk 0:03:01.9]} 1... Nf6 {[%clk 0:02:58.6]} 2. c4 {[%clk 0:03:02.5]}
2... e6 {[%clk 0:02:59.7]} 3. Nc3 {[%clk 0:03:02.2]} 3... d5 {[%clk 0:02:59.5]}
4. cxd5 {[%clk 0:03:03.2]} 4... exd5 {[%clk 0:03:00.8]} 5. Bg5 {[%clk
0:03:03.6]} 5... c6 {[%clk 0:03:00.8]} 6. e3 {[%clk 0:03:04.8]} 6... Be7 {[%clk
0:03:01.6]} 7. Bd3 {[%clk 0:03:05.9]} 7... O-O {[%clk 0:03:03.2]} 8. Qc2 {[%clk
0:03:07.1]} 8... Nbd7 {[%clk 0:03:04.8]} 9. Nge2 {[%clk 0:03:08.2]} 9... Re8
{[%clk 0:03:06.1]} 10. O-O {[%clk 0:03:09.4]} 10... Nf8 {[%clk 0:03:07.6]} 11.
f3 {[%clk 0:03:10.2]} 11... Ne6 {[%clk 0:03:04.4]} 12. Bh4 {[%clk 0:03:10.6]}
12... g6 {[%clk 0:03:04.7]} 13. Rad1 {[%clk 0:03:10.3]} 13... Ng7 {[%clk
0:03:05.8]} 14. e4 {[%clk 0:03:11.2]} 14... dxe4 {[%clk 0:03:04.9]} 15. fxe4
{[%clk 0:03:12.5]} 15... Nfh5 {[%clk 0:03:06.4]} 16. Bxe7 {[%clk 0:03:13.5]}
16... Qxe7 {[%clk 0:03:08]} 17. Rf2 {[%clk 0:03:12.9]} 17... Ne6 {[%clk
0:02:45.4]} 18. Rdf1 {[%clk 0:02:54.8]} 18... Rf8 {[%clk 0:02:46.4]} 19. e5
{[%clk 0:02:54.1]} 19... c5 {[%clk 0:02:38.4]} 20. Nd5 {[%clk 0:02:38.7]} 20...
Qd8 {[%clk 0:02:33.4]} 21. Bc4 {[%clk 0:02:36.9]} 21... Nxd4 {[%clk 0:02:28.2]}
22. Nxd4 {[%clk 0:02:29.4]} 22... cxd4 {[%clk 0:02:30.1]} 23. Qd2 {[%clk
0:02:13.9]} 23... b5 {[%clk 0:02:10.3]} 24. Qh6 {[%clk 0:01:56.5]} 24... Kh8
{[%clk 0:00:18.9]} 25. Rxf7 {[%clk 0:01:21.8]} 25... Rxf7 {[%clk 0:00:19.9]} 26.
Rxf7 {[%clk 0:01:22.8]} 26... Qg8 {[%clk 0:00:21.3]} 27. Ne7 {[%clk 0:00:48.3]}
1-0

[Event "*** Titled Tuesday Blitz"]
[Site "Chess.com"]
[Date "2018.06.05"]
[Round "3"]
[White "SergeiAza"]
[Black "ENEASZ"]
[Result "1-0"]
[WhiteElo "2633"]
[BlackElo "2509"]
[TimeControl "180+2"]
[EndTime "13:39:58 PDT"]
[Termination "SergeiAza won by resignation"]

1. e4 {[%clk 0:03:01.9]} 1... d6 {[%clk 0:03:00.6]} 2. d4 {[%clk 0:03:02.5]}
2... Nf6 {[%clk 0:03:01.1]} 3. Nc3 {[%clk 0:03:04]} 3... e5 {[%clk 0:03:01.3]}
4. Nf3 {[%clk 0:03:04.4]} 4... Nbd7 {[%clk 0:03:01.1]} 5. Bc4 {[%clk 0:03:04.7]}
5... Be7 {[%clk 0:03:01.6]} 6. O-O {[%clk 0:03:06.2]} 6... O-O {[%clk
0:03:02.3]} 7. Re1 {[%clk 0:03:07.7]} 7... a6 {[%clk 0:03:03.1]} 8. a4 {[%clk
0:03:07.9]} 8... b6 {[%clk 0:03:04.5]} 9. h3 {[%clk 0:03:03.5]} 9... Bb7 {[%clk
0:03:05.4]} 10. Ba2 {[%clk 0:02:58.9]} 10... c6 {[%clk 0:03:00.6]} 11. dxe5
{[%clk 0:02:52.9]} 11... dxe5 {[%clk 0:02:58.9]} 12. Nh4 {[%clk 0:02:54.3]}
12... g6 {[%clk 0:02:53.3]} 13. Qf3 {[%clk 0:02:47.6]} 13... b5 {[%clk
0:02:38.6]} 14. Bh6 {[%clk 0:02:41.2]} 14... Re8 {[%clk 0:02:38.7]} 15. Rad1
{[%clk 0:02:40.1]} 15... Qc7 {[%clk 0:02:36.1]} 16. Bg5 {[%clk 0:02:11.3]} 16...
c5 {[%clk 0:02:18.7]} 17. Rxd7 {[%clk 0:01:57.5]} 17... Qxd7 {[%clk 0:02:12.4]}
18. Bxf6 {[%clk 0:01:58.9]} 18... Bxf6 {[%clk 0:02:09.7]} 19. Qxf6 {[%clk
0:02:00.4]} 19... c4 {[%clk 0:02:11]} 20. Re3 {[%clk 0:01:44.2]} 20... Bc6
{[%clk 0:02:10.2]} 21. Rg3 {[%clk 0:01:01.1]} 21... Qe6 {[%clk 0:02:04.5]} 22.
Qg5 {[%clk 0:00:59.6]} 22... Kh8 {[%clk 0:02:00.3]} 23. Qh6 {[%clk 0:00:58.7]}
23... Rad8 {[%clk 0:01:35.5]} 24. Rg4 {[%clk 0:00:58.8]} 24... Qe7 {[%clk
0:00:54.2]} 25. Rxg6 {[%clk 0:00:49.2]} 25... Rg8 {[%clk 0:00:41.3]} 26. Rxc6
{[%clk 0:00:37]} 26... b4 {[%clk 0:00:42.7]} 27. Nf5 {[%clk 0:00:34]} 27... Qg5
{[%clk 0:00:37.6]} 28. Qxg5 {[%clk 0:00:32.1]} 28... Rxg5 {[%clk 0:00:39.5]} 29.
Nd5 {[%clk 0:00:32.8]} 1-0

[Event "*** Titled Tuesday Blitz"]
[Site "Chess.com"]
[Date "2018.06.05"]
[Round "3"]
[White "BasilSmash"]
[Black "ChessWarrior7197"]
[Result "0-1"]
[WhiteElo "2401"]
[BlackElo "2680"]
[TimeControl "180+2"]
[EndTime "13:39:58 PDT"]
[Termination "ChessWarrior7197 won by resignation"]

1. d4 {[%clk 0:03:01.9]} 1... Nf6 {[%clk 0:03:00.3]} 2. Nf3 {[%clk 0:03:01.9]}
2... e6 {[%clk 0:03:00]} 3. Bf4 {[%clk 0:03:02.1]} 3... d6 {[%clk 0:02:53.6]} 4.
Nc3 {[%clk 0:02:55.4]} 4... a6 {[%clk 0:02:51.8]} 5. a4 {[%clk 0:02:53.5]} 5...
b6 {[%clk 0:02:52.1]} 6. e4 {[%clk 0:02:54]} 6... Bb7 {[%clk 0:02:53.1]} 7. Bd3
{[%clk 0:02:54.5]} 7... g6 {[%clk 0:02:52.4]} 8. O-O {[%clk 0:02:54]} 8... Bg7
{[%clk 0:02:52.9]} 9. Re1 {[%clk 0:02:54.9]} 9... O-O {[%clk 0:02:53.7]} 10. h3
{[%clk 0:02:44.2]} 10... Nc6 {[%clk 0:02:51.7]} 11. Ne2 {[%clk 0:02:35.9]} 11...
Nb4 {[%clk 0:02:51.4]} 12. Ng3 {[%clk 0:02:32.2]} 12... Nd7 {[%clk 0:02:50.8]}
13. Bf1 {[%clk 0:02:28.8]} 13... e5 {[%clk 0:02:44.2]} 14. Bg5 {[%clk 0:02:26]}
14... Qe8 {[%clk 0:02:41.8]} 15. a5 {[%clk 0:02:16.9]} 15... bxa5 {[%clk
0:02:38.7]} 16. d5 {[%clk 0:02:13.9]} 16... f5 {[%clk 0:02:35.1]} 17. c4 {[%clk
0:01:45.6]} 17... f4 {[%clk 0:02:33.5]} 18. Ne2 {[%clk 0:01:40]} 18... h6 {[%clk
0:02:33.7]} 19. Bh4 {[%clk 0:01:41.1]} 19... g5 {[%clk 0:02:34.5]} 20. Bxg5
{[%clk 0:01:42.3]} 20... hxg5 {[%clk 0:02:35.6]} 21. Nxg5 {[%clk 0:01:44.2]}
21... Nc5 {[%clk 0:02:32]} 22. Nc3 {[%clk 0:01:42.7]} 22... Qg6 {[%clk
0:02:30.8]} 23. Nf3 {[%clk 0:01:37]} 23... Bc8 {[%clk 0:02:31.7]} 24. Kh1 {[%clk
0:01:35.3]} 24... Bd7 {[%clk 0:02:27.1]} 25. Rxa5 {[%clk 0:01:34.9]} 25... Bf6
{[%clk 0:02:25.6]} 26. Qd2 {[%clk 0:01:31.8]} 26... Rab8 {[%clk 0:02:25.1]} 27.
Rea1 {[%clk 0:01:31.8]} 27... Qh5 {[%clk 0:02:21.8]} 28. Nh2 {[%clk 0:01:28.4]}
28... Qg6 {[%clk 0:02:16.9]} 29. f3 {[%clk 0:01:28.6]} 29... Bh4 {[%clk
0:02:15.3]} 30. Na2 {[%clk 0:01:28.7]} 30... Nb3 {[%clk 0:02:13.2]} 31. Qxb4
{[%clk 0:01:21.6]} 31... Rxb4 {[%clk 0:02:13]} 32. Nxb4 {[%clk 0:01:23.5]} 32...
Nxa5 {[%clk 0:02:14.1]} 33. Rxa5 {[%clk 0:01:23.8]} 33... Rb8 {[%clk 0:02:14.9]}
34. Nd3 {[%clk 0:01:20.7]} 34... Bg3 {[%clk 0:02:07.1]} 35. b4 {[%clk
0:01:15.6]} 35... Bxh2 {[%clk 0:02:08]} 36. Kxh2 {[%clk 0:01:17.5]} 36... Qg3+
{[%clk 0:02:09.8]} 37. Kh1 {[%clk 0:01:15]} 37... Bxh3 {[%clk 0:02:11.2]} 38.
gxh3 {[%clk 0:01:13]} 38... Qxf3+ {[%clk 0:02:12.2]} 39. Kg1 {[%clk 0:01:12.7]}
39... Kf7 {[%clk 0:02:13.2]} 40. Nf2 {[%clk 0:01:10.1]} 40... Rg8+ {[%clk
0:02:13.3]} 41. Ng4 {[%clk 0:01:11]} 41... Qg3+ {[%clk 0:02:02.1]} 42. Kh1
{[%clk 0:01:04.9]} 42... Rxg4 {[%clk 0:01:55.5]} 43. hxg4 {[%clk 0:01:03.2]}
43... f3 {[%clk 0:01:56.9]} 44. Ra2 {[%clk 0:00:47.4]} 44... f2 {[%clk 0:01:53]}
0-1

[Event "*** Titled Tuesday Blitz"]
[Site "Chess.com"]
[Date "2018.06.05"]
[Round "3"]
[White "AlexTruskavetsky"]
[Black "vovachesss"]
[Result "0-1"]
[WhiteElo "2278"]
[BlackElo "2394"]
[TimeControl "180+2"]
[EndTime "13:40:04 PDT"]
[Termination "vovachesss won on time"]

1. d4 {[%clk 0:03:01.9]} 1... Nf6 {[%clk 0:02:59.9]} 2. c4 {[%clk 0:03:02.4]}
2... e6 {[%clk 0:03:00.9]} 3. g3 {[%clk 0:03:02.3]} 3... Bb4+ {[%clk 0:03:01.1]}
4. Bd2 {[%clk 0:03:00.9]} 4... Qe7 {[%clk 0:03:02.4]} 5. Nc3 {[%clk 0:02:54.8]}
5... O-O {[%clk 0:03:02.3]} 6. Nf3 {[%clk 0:02:55]} 6... d5 {[%clk 0:03:02.7]}
7. Bg2 {[%clk 0:02:53.2]} 7... dxc4 {[%clk 0:03:02.5]} 8. O-O {[%clk 0:02:53.6]}
8... c5 {[%clk 0:03:02.5]} 9. dxc5 {[%clk 0:02:50.8]} 9... Rd8 {[%clk
0:03:00.9]} 10. Qc2 {[%clk 0:02:50.3]} 10... Bxc5 {[%clk 0:02:57.2]} 11. Ne5
{[%clk 0:02:49.5]} 11... Nc6 {[%clk 0:02:56.4]} 12. Nxc4 {[%clk 0:02:40.6]}
12... e5 {[%clk 0:02:51.2]} 13. Na4 {[%clk 0:02:19.2]} 13... Bb4 {[%clk
0:02:45.9]} 14. Bxb4 {[%clk 0:02:13]} 14... Nxb4 {[%clk 0:02:46.5]} 15. Qc1
{[%clk 0:02:07.8]} 15... Bg4 {[%clk 0:02:34.2]} 16. a3 {[%clk 0:01:52.1]} 16...
Nbd5 {[%clk 0:02:21.4]} 17. e4 {[%clk 0:01:49.8]} 17... Nc7 {[%clk 0:02:07.4]}
18. Na5 {[%clk 0:01:50.2]} 18... Ne6 {[%clk 0:02:02.9]} 19. Nc3 {[%clk
0:01:34.6]} 19... Nd4 {[%clk 0:02:00.7]} 20. Kh1 {[%clk 0:01:26.9]} 20... Rac8
{[%clk 0:02:00.4]} 21. h3 {[%clk 0:01:06.6]} 21... Be6 {[%clk 0:01:54.4]} 22. f4
{[%clk 0:00:56.6]} 22... b6 {[%clk 0:01:49.3]} 23. fxe5 {[%clk 0:00:54.9]} 23...
Nh5 {[%clk 0:01:50.5]} 24. Kh2 {[%clk 0:00:25.9]} 24... bxa5 {[%clk 0:01:47.2]}
25. g4 {[%clk 0:00:24.8]} 25... Bxg4 {[%clk 0:01:42.6]} 26. hxg4 {[%clk
0:00:22.5]} 26... Qh4+ {[%clk 0:01:43.7]} 27. Kg1 {[%clk 0:00:16.3]} 27... Rxc3
{[%clk 0:01:44]} 28. Qe1 {[%clk 0:00:12.9]} 28... Rg3 {[%clk 0:01:36.9]} 29.
gxh5 {[%clk 0:00:11.3]} 29... Nc2 {[%clk 0:01:32.6]} 30. Qxa5 {[%clk 0:00:05.4]}
30... Ne3 {[%clk 0:01:23.9]} 31. Rf2 {[%clk 0:00:03.6]} 31... Qg5 {[%clk
0:01:23.8]} 0-1

[Event "*** Titled Tuesday Blitz"]
[Site "Chess.com"]
[Date "2018.06.05"]
[Round "3"]
[White "evgenysharapov"]
[Black "Alopekos"]
[Result "1-0"]
[WhiteElo "2303"]
[BlackElo "2352"]
[TimeControl "180+2"]
[EndTime "13:40:08 PDT"]
[Termination "evgenysharapov won on time"]

1. e4 {[%clk 0:03:01.9]} 1... e5 {[%clk 0:03:00.6]} 2. Nf3 {[%clk 0:03:01.9]}
2... Nc6 {[%clk 0:03:02.1]} 3. Bb5 {[%clk 0:03:02.2]} 3... a6 {[%clk 0:03:03.6]}
4. Ba4 {[%clk 0:03:02.8]} 4... Nf6 {[%clk 0:03:05.1]} 5. O-O {[%clk 0:03:03.2]}
5... b5 {[%clk 0:03:06.6]} 6. Bb3 {[%clk 0:03:03.7]} 6... Bc5 {[%clk 0:03:08.5]}
7. c3 {[%clk 0:03:02.8]} 7... d6 {[%clk 0:03:09.7]} 8. Re1 {[%clk 0:03:02.2]}
8... O-O {[%clk 0:03:09.4]} 9. d4 {[%clk 0:03:02.2]} 9... Bb6 {[%clk 0:03:10.4]}
10. h3 {[%clk 0:03:02.3]} 10... Re8 {[%clk 0:03:09.1]} 11. dxe5 {[%clk
0:02:50.9]} 11... Nxe5 {[%clk 0:03:08.3]} 12. Nxe5 {[%clk 0:02:49]} 12... Rxe5
{[%clk 0:02:48.7]} 13. Bf4 {[%clk 0:02:48.1]} 13... Re8 {[%clk 0:02:39.7]} 14.
e5 {[%clk 0:02:45.7]} 14... dxe5 {[%clk 0:02:38]} 15. Qxd8 {[%clk 0:02:45.1]}
15... Rxd8 {[%clk 0:02:39.9]} 16. Bxe5 {[%clk 0:02:44]} 16... Nd7 {[%clk
0:02:09.6]} 17. Bg3 {[%clk 0:02:41.9]} 17... Nc5 {[%clk 0:02:04.1]} 18. Bc2
{[%clk 0:02:32.4]} 18... Be6 {[%clk 0:01:55]} 19. a4 {[%clk 0:02:27.2]} 19...
bxa4 {[%clk 0:00:59.1]} 20. Bxa4 {[%clk 0:02:27.1]} 20... Nxa4 {[%clk
0:00:48.2]} 21. Rxa4 {[%clk 0:02:27.3]} 21... a5 {[%clk 0:00:50.1]} 22. Na3
{[%clk 0:02:11.6]} 22... h6 {[%clk 0:00:14.1]} 23. Nc4 {[%clk 0:02:10.7]} 23...
Bxc4 {[%clk 0:00:07.2]} 24. Rxc4 {[%clk 0:02:10.8]} 24... Rd2 {[%clk 0:00:09.1]}
25. b3 {[%clk 0:01:42.5]} 25... Rb2 {[%clk 0:00:08.4]} 26. Re7 {[%clk
0:01:31.9]} 26... Kf8 {[%clk 0:00:09]} 27. Rd7 {[%clk 0:01:25.2]} 27... Ke8
{[%clk 0:00:10.1]} 28. Rd3 {[%clk 0:01:20.9]} 28... Rc8 {[%clk 0:00:03.1]} 29.
Re4+ {[%clk 0:01:08.6]} 29... Kf8 {[%clk 0:00:02.1]} 30. Rd7 {[%clk 0:01:08.8]}
1-0